Cogmind - Beta 10.2 @@@ ROGUE MODE // 2022.02.23 @ 04:23:44 // Winter2019/RPGLIKE Player: woegarden Result: Destroyed by Y-45 Defender with Beam Rifle Performance ------------- Evolutions (1) 500 Regions Visited (2) 400 Robots Destroyed (19) 95 Value Destroyed (439) 439 Prototype IDs (0) 0 Alien Tech Used (0) 0 Bonus (0) 0 TOTAL SCORE: 1434 Bonus ------- None Cogmind --------- Core Integrity 0/600 Matter 216/300 Energy 505/515 System Corruption 0% Temperature Cool (147) Movement Treading (160) Location -9/Materials Parts ------- > --- POWER (2) -------- Ion Engine Improved Ion Engine > --- PROPULSION (2) --- Light Treads Improved Treads > --- UTILITY (3) ------ Improved Terrain Scanner Targeting Computer > --- WEAPON (2) ------- Particle Gun Grenade Launcher > --- INVENTORY (1) ---- Shield Generator Peak State ------------ > --- POWER ------------ Ion Engine Improved Ion Engine > --- PROPULSION ------- Light Treads Improved Treads > --- UTILITY ---------- Improved Terrain Scanner Targeting Computer > --- WEAPON ----------- Particle Gun Grenade Launcher > --- INVENTORY -------- (None) [Rating: 12] Favorites ----------- Power Ion Engine Engine Ion Engine Propulsion Improved Treads Treads Improved Treads Wheel Wheel Utility Targeting Computer Device Improved Terrain Scanner Processor Targeting Computer Weapon Grenade Launcher Energy Gun Particle Gun Ballistic Gun Light Assault Rifle Launcher Grenade Launcher Build | -11 -10 -9 ------- Run | Scr Mat Mat Slots Evolved 5 | . . 5 Power 1 | . . 1 Propulsion 1 | . . 1 Utility 2 | . . 2 Weapon 1 | . . 1 Parts Attached 13 | 6 3 4 Power 3 | 2 . 1 Engine 3 | 2 . 1 Core . | . . . Reactor . | . . . Propulsion 4 | 2 1 1 Treads 2 | . 1 1 Leg . | . . . Wheel 2 | 2 . . Hover . | . . . Flight . | . . . Utility 2 | . 1 1 Device 1 | . . 1 Storage . | . . . Processor 1 | . 1 . Hackware . | . . . Protection . | . . . Artifact . | . . . Weapon 4 | 2 1 1 Energy Gun 2 | 1 . 1 Energy Cannon . | . . . Ballistic Gun 1 | 1 . . Ballistic Cannon . | . . . Launcher 1 | . 1 . Special Weapon . | . . . Impact Weapon . | . . . Slashing Weapon . | . . . Piercing Weapon . | . . . Special Melee Weapon . | . . . Unidentified Prototypes . | . . . Parts Lost . | . . . Power . | . . . Propulsion . | . . . Utility . | . . . Weapon . | . . . Highest Loss Streak . | . . . Average Slot Usage (%) 79 | . 86 69 Engine 22 | . 25 20 Treads 15 | . 16 14 Wheel 4 | . 8 . Device 1 | . . 2 Processor 11 | . 11 11 Energy Gun 4 | . . 9 Ballistic Gun 1 | . 2 . Launcher 17 | . 22 11 Naked Turns . | . . . Heaviest Build 19 | 7 8 19 Greatest Support 43 | 10 23 43 Greatest Overweight (x) 2 | 2 . . Average Overweight (x) . | . . . Largest Inventory Capacity 1 | . . 1 Average Capacity . | . . . Most Carried 1 | . . 1 Average Carried . | . . . Final Capacity 1 | . . 1 Final Carried 1 | . . 1 Class Distribution -------------------- 100% | Mutant Dominant Class ---------------- Mutant | -10/Materials Mutant | -9/Materials Resources | -11 -10 -9 ----------- Run | Scr Mat Mat Matter Collected 420 | 130 160 130 Remotely . | . . . Salvage Created 456 | 61 184 211 Parts 33 | 2 21 10 Haulers Intercepted 1 | . 1 . Recyclers Shooed . | . . . Parts Field Recycled . | . . . Retrieved Matter . | . . . Parts Self-Destructed . | . . . Prevented . | . . . Kills | -11 -10 -9 ------- Run | Scr Mat Mat Combat Hostiles Destroyed 12 | . 8 4 AOE 12 | . 8 4 Classes Destroyed 9 | 1 6 2 Worker 2 | . 1 1 Tunneler 1 | . 1 . Hauler 1 | . 1 . Recycler 2 | 1 1 . Operator 1 | . 1 . Swarmer 3 | . 3 . Grunt 6 | . 5 1 Brawler 1 | . . 1 Sentry 2 | . . 2 Best Kill Streak 6 | 1 6 2 Combat Bots Only 4 | . 4 2 Max Kills in Single Turn 3 | 1 3 2 Gunslinging . | . . . Exploded 2 | . 2 2 Melee . | . . . Uniques/NPCs Destroyed . | . . . Combat | -11 -10 -9 -------- Run | Scr Mat Mat Damage Taken 726 | . 172 554 Core 606 | . 142 464 Absorbed by Shields . | . . . Redirected to Core 397 | . 104 293 Core Remaining (%) 88 | 100 76 . Volleys Fired 22 | 3 12 7 Largest 2 | 1 1 2 Hottest 95 | 40 30 95 Shots Fired 29 | 3 12 14 Gun 10 | 3 . 7 Cannon . | . . . Launcher 19 | . 12 7 Special . | . . . Kinetic . | . . . Thermal 7 | . . 7 Explosive 19 | . 12 7 Electromagnetic 3 | 3 . . Robot Hit Streak 9 | 1 4 9 Robot Miss Streak 2 | 1 2 1 Penetration Max . | . . . Secondary Targets . | . . . Shots Hit Robots 20 | 2 6 12 Core Hits 34 | 2 21 11 Critical Hits . | . . . Critical Kills . | . . . Critical Parts Destroyed . | . . . Melee Attacks . | . . . Impact . | . . . Slashing . | . . . Piercing . | . . . Sneak Attacks . | . . . Combat Hostiles . | . . . Follow-up Attacks . | . . . Damage Inflicted 981 | 71 619 291 Guns 99 | 27 . 72 Cannons . | . . . Explosions 863 | 44 607 212 Melee . | . . . Ramming 19 | . 12 7 Kinetic . | . . . Thermal 116 | 44 . 72 Explosive 819 | . 607 212 Electromagnetic 27 | 27 . . Impact . | . . . Slashing . | . . . Piercing . | . . . Highest Corruption 2 | . 2 . Average Corruption 2 | . 2 . Corruption Purged . | . . . Effects 3 | . 3 . Message Errors 1 | . 1 . Heat Flow Errors 1 | . 1 . Energy Discharges 1 | . 1 . Overload Shots . | . . . Overflow Damage . | . . . Projectiles . | . . . Explosions . | . . . Melee . | . . . Knockbacks 1 | . . 1 Impact 1 | . . 1 Kinetic . | . . . Secondary . | . . . Self-Inflicted Damage 142 | . 103 39 Shots 4 | . 3 1 Rammed 4 | . 1 3 Targets Rammed 4 | . 1 3 Kicked . | . . . Crushed . | . . . Highest Temperature 248 | . 248 180 Average Temperature 99 | . 133 79 Received Heat Transfer 237 | . 24 213 Siege Activations . | . . . Robots Corrupted . | . . . Combat Hostiles . | . . . Parts Fried . | . . . Impact Corruptions . | . . . Robots Melted . | . . . Combat Hostiles . | . . . Parts Melted . | . . . Heat Transferred 185 | . . 185 Parts Sabotaged . | . . . Parts Stolen . | . . . Parts Stripped . | . . . Power Chain Reactions 1 | 1 . . Missiles Intercepted . | . . . Alert | -11 -10 -9 ------- Run | Scr Mat Mat Peak Influence 324 | 5 295 324 Initial 124 | . 3 124 Average 148 | 2 154 191 Maximum Alert Level 1 | . 1 1 Low Security (%) 56 | 100 44 57 Level 1 43 | . 55 42 Level 2 . | . . . Level 3 . | . . . Level 4 . | . . . Level 5 . | . . . High Security . | . . . Max Security . | . . . Squads Dispatched 4 | . 2 2 Investigation . | . . . Extermination . | . . . Reinforcement 4 | . 2 2 Assault . | . . . Garrison . | . . . Intercept . | . . . Construction Impeded . | . . . Haulers Reinforced . | . . . Stealth | -11 -10 -9 --------- Run | Scr Mat Mat Distress Signals . | . . . Communications Jammed . | . . . Distress Signals . | . . . Times Spotted 20 | . 12 8 Peak Tracking Total 5 | . 4 5 Tactical Retreats . | . . . Traps | -11 -10 -9 ------- Run | Scr Mat Mat Traps Triggered . | . . . Indirectly . | . . . Trap Hack Attempts . | . . . Triggered . | . . . Disarmed . | . . . Reprogrammed . | . . . Reused . | . . . Traps Extracted . | . . . Installed . | . . . Triggered . | . . . Machines | -11 -10 -9 ---------- Run | Scr Mat Mat Machines Disabled 4 | . 2 2 Max in Single Turn 1 | . 1 1 Machines Sabotaged . | . . . Garrisons Compromised . | . . . Overloaded Fab Kills . | . . . Fab Network Shutdowns . | . . . Hacking | -11 -10 -9 --------- Run | Scr Mat Mat Machines Accessed . | . . . Terminals . | . . . Fabricators . | . . . Repair Stations . | . . . Recycling Units . | . . . Scanalyzers . | . . . Garrison Access . | . . . Total Hacks . | . . . Successful . | . . . Failed . | . . . Catastrophic . | . . . Database Lockouts . | . . . Manual . | . . . Terminals . | . . . Fabricators . | . . . Repair Stations . | . . . Recycling Units . | . . . Scanalyzers . | . . . Garrison Access . | . . . Terminal Hacks . | . . . Fabricator Hacks . | . . . Repair Station Hacks . | . . . Recycling Unit Hacks . | . . . Scanalyzer . | . . . Garrison Access Hacks . | . . . Unauthorized Hacks . | . . . Terminals . | . . . Fabricators . | . . . Repair Stations . | . . . Recycling Units . | . . . Scanalyzers . | . . . Garrison Access . | . . . Data Cores Recovered . | . . . Used . | . . . Hacking Detections . | . . . Full Trace Events . | . . . Feedback Events . | . . . Feedback Blocked . | . . . Robot Schematics Acquired . | . . . Robots Built . | . . . Matter . | . . . Time . | . . . Total Robot Build Rating . | . . . Part Schematics Acquired . | . . . Parts Built . | . . . Matter . | . . . Time . | . . . Total Part Build Rating . | . . . Parts Repaired . | . . . Time . | . . . Parts Recycled . | . . . Recycled Matter . | . . . Retrieved Matter . | . . . Retrieved Components . | . . . Parts Scanalyzed . | . . . Part Schematics Acquired . | . . . Parts Damaged . | . . . Bothacking | -11 -10 -9 ------------ Run | Scr Mat Mat Used RIF Installer . | . . . Robots Hacked . | . . . Non-combat . | . . . Combat . | . . . Robot Hacks Applied . | . . . Relay Couplers Released . | . . . Robots Rewired . | . . . Allies Hacked . | . . . Hacks Repelled . | . . . Allies | -11 -10 -9 -------- Run | Scr Mat Mat Total Allies . | . . . Largest Group . | . . . Highest-Rated Group . | . . . Highest-Rated Ally . | . . . Total Orders . | . . . Ally Attacks . | . . . Total Damage . | . . . Kills . | . . . Allies Corrupted . | . . . Allies Melted . | . . . Intel | -11 -10 -9 ------- Run | Scr Mat Mat Robot Analysis Total . | . . . Derelict Logs Recovered . | . . . Drone Launches . | . . . Drone Recoveries . | . . . Exploration | -11 -10 -9 ------------- Run | Scr Mat Mat Turns Passed 480 | 63 234 183 Spaces Moved 324 | 59 170 95 Core 15 | 15 . . Treads 181 | . 86 95 Legs . | . . . Wheels 128 | 44 84 . Hover . | . . . Flight . | . . . Fastest Speed 50 | 50 80 160 Average Speed 125 | 82 120 160 Slowest Speed 160 | 150 160 160 Overloaded Moves . | . . . Propulsion Burnouts . | . . . Robots Hopped . | . . . Cave-ins Triggered . | . . . Exploration Rate (%) 21 | 3 43 17 Regions Visited 2 Branch Regions . Pre-discovered Areas . | . . . Known Exits Taken . | . . . Unknown Exits Taken 2 | 1 1 . Scrap Searched . | . . . Spaces Dug . | . . . Terrain Destroyed 110 | . 68 42 Melee . | . . . Projectile . | . . . AOE 110 | . 68 42 Terrain Rammed . | . . . Walls Destroyed . | . . . Machines Disabled . | . . . Actions | -11 -10 -9 --------- Run | Scr Mat Mat Total 366 | 67 187 112 Wait . | . . . Move 322 | 58 169 95 Hop . | . . . Pick Up 3 | . . 3 Fast Attach 11 | 6 3 2 Attach 2 | . . 2 Detach . | . . . Swap . | . . . Drop 2 | . 2 . Fire 22 | 3 12 7 Melee . | . . . Ram 1 | . 1 . Kick . | . . . Crush 3 | . . 3 Escape Stasis . | . . . Rewire . | . . . Trap . | . . . Miscellaneous . | . . . Route ------- -11/Scrapyard -10/Materials -9/Materials History --------- Turn | Location | Event 20 | -11/Scrapyard | Discovered new exit (range 15) 37 | -11/Scrapyard | Released all parts (3) 64 | -11/Scrapyard | Entered Materials 282 | -10/Materials | Discovered new exit (range 9) 298 | -10/Materials | Entered another Materials area 300 | -9/Materials | Reached level 2 302 | -9/Materials | Upgraded with Power slot (x1) 302 | -9/Materials | Upgraded with Propulsion slot (x1) 302 | -9/Materials | Upgraded with Utility slot (x2) 302 | -9/Materials | Upgraded with Weapon slot (x1) 315 | -9/Materials | Build established: Mutant 427 | -9/Materials | Reached level 3 455 | -9/Materials | Core integrity fell below 50% 477 | -9/Materials | Core integrity fell below 20% 481 | -9/Materials | Destroyed by Y-45 Defender with Beam Rifle Last Messages --------------- 00434_ U-05 Engineer lays Concrete. 00435_ U-05 Engineer builds a Wall. 00440_ U-05 Engineer lays Concrete. 00442_ U-05 Engineer builds a Wall. 00442_ U-05 Engineer lays Concrete. 00444_ R-06 Scavenger collects Beam Rifle. 00447_ U-05 Engineer builds a Wall. 00448_ Acquired Lgt. Treads. 00448_ R-06 Scavenger collects Heat Sink. 00450_ Acquired 36 matter. 00452_ R-06 Scavenger collects Aluminum Leg. 00457_ Acquired Shield Generator. 00458_ Slammed into G-34 Mercenary. 00458_ G-34 Mercenary knocked back. 00459_ K-01 Serf collects debris. 00459_ Slammed into G-34 Mercenary. 00476_ ALERT: Hostiles spotted, dispatching reinforcements to Terminal M008. 00477_ B-36 Bruiser destroyed. 00480_ Acquired 61 matter. Map ----- +----------------------------------------------------+ | ????????????????????????????????? ???# # "" | | ?????????????????????????????????? #??# # "" | | ??????????????????????????????????? #??# #? " | | ???????????????????????????####????# #??# #? | | ??????????????????????????? ???# #??# #?? | | ??????????????????????????#? ???# #??# #?? | | ??????????????????????????# ???# #### #### | | ??????????????????????????# ???# | | ??????????????????????????#= ""?# | | ??????????????????????????# ""?# ! | | ??????????????????????????# ""?# | | ??????????????????????????# ""?# ![ # | | ??????????????????????????+ ?# [[ # | | ????????????????????????############ [ + | | ????????????????????????# ! [ # | | ????????????????????????# """% | | ????????????????????????# T" # " | | ????????????????????????# """ ######+####### | | ????????????????????????# [#???? ??????# ## | | ????????????????????????# """ #???""???????###? | | ????????????????????????# """ #???????????????? | | ????????????????????????# """ #?????? ????????? | | ???????????????? ????#### #???????????????? | | ????????? ###+###### g## #?????????????? | | ???????? ^ g #?????????????? | | ???????? ^ =@ #??????????????? | | ???????? t * ????? ??? | | ????????????##### ####+ #######?????????? | | ???????????????????? # #??????????????? | | ??????????????????? # #??????????????? | | ????????????? ????# # #??????????????? | | ??????????????????#= # #??????????????? | | ??????????????? ??# # #??????????????? | | ??????????????????# # !! ##?????????????? | | ??????????????????#######?? !! #??????????????? | | ??????????????????????????? ! #??????????????? | | ??????????????????????????? #??????????????? | | ???????????????????????????########??????????????? | | ?????????????????????????????????????????????????? | | ?????????????????????????????#???????????????????? | | ?????????????????????????????????????????????????? | | ?????????????????????????????????????????????????? | | | | | | | | | | | | | | | | | +----------------------------------------------------+ Best States ------------- Heat Dissipation 25 Energy Generation 27 Energy Capacity 515 Matter Stores 300 Matter Capacity 300 Sight Range 16 Robot Scan Range 2 Terrain Scan Range 16 Terrain Scan Density 10 Evasion (%) 44 Targeting Accuracy 5 Recoil Reduction 2 Item Schematics ----------------- None Robot Schematics ------------------ None Fabricated ------------ Nothing Alien Tech Used ----------------- None Achievements -------------- None Challenges ------------ None RPGLIKE | -11 -10 -9 --------- Run | Scr Mat Mat Levels Raised 2 | . . 2 XP Earned 6385 | 3000 1135 2250 XP Spent 4375 | . . 4375 Upgrades 11 | . . 11 Power Slot 1 | . . 1 Propulsion Slot 1 | . . 1 Utility Slot 2 | . . 2 Weapon Slot 1 | . . 1 Energy Generation 2 | . . 2 Energy Storage 2 | . . 2 Inventory Capacity 1 | . . 1 Sensor Range 1 | . . 1 Protomatter Created 82 | . 82 . Protomatter Decayed 19 | . 19 . Game ------ Seed EnhancedHelicalStabilizer Manual? 0 Play Time 00:11:10 Cumulative 39.8 hours Start 2022.02.23 @ 04:12:13 End 2022.02.23 @ 04:23:44 Sessions 1 Manual Loads 0 Difficulty Rogue Special Mode Winter2019/RPGLIKE Game No. 49 Rogue 19 Adventurer 30 Explorer 0 Win Type - Total 0 Types 0/0/0/0/0/0/0/0/0 Lore% 21 Gallery% 34 Achievement% 24 Wizard Run 0 Options --------- ASCII 0 Keyboard 0 Movement Mouse Keybinds 0 Fullscreen 2 Font 16/Proggy Map View 76x50 Tactical HUD 1 Map Filters NONE Filters NONE Steam 1 RUN: 7b85a48b-c684-482e-b552-e2de39bb4db2